bitfinex/quotes_BTCUSD_20240703
["timestamp","ask_amount","ask_price","bid_price","bid_amount"]
[1720011320223,0.03228964,60104.0,60103.0,0.25775796]
[1720011320470,0.0320231,60104.0,60103.0,0.25775796]
[1720011321932,0.0320231,60104.0,60103.0,0.1995593]
[1720011321933,0.09091215,60104.0,60103.0,0.1995593]
[1720011322162,0.29629105,60104.0,60103.0,0.1832988]
[1720011322403,0.09086861,60104.0,60103.0,0.1832988]
[1720011322637,0.29629105,60104.0,60103.0,0.1882988]
[1720011322920,0.29629105,60104.0,60103.0,0.1652988]
[1720011323186,0.29629105,60104.0,60096.0,0.0162605]
[1720011323187,0.20542244,60097.0,60096.0,0.0162605]
[1720011323408,0.29629105,60097.0,60096.0,0.1765593]
[1720011323649,0.292207,60097.0,60096.0,0.1602988]
[1720011323887,0.14552244,60090.0,60087.0,0.0162605]
[1720011324140,0.14552244,60090.0,60088.0,0.1602988]
[1720011324141,0.23208307,60089.0,60088.0,0.1602988]
[1720011324378,0.22976968,60089.0,60088.0,0.1602988]
[1720011324609,0.23208156,60089.0,60088.0,0.1602988]
[1720011324844,0.08655912,60089.0,60088.0,0.1602988]
[1720011325084,0.23208156,60089.0,60088.0,0.1602988]
[1720011326256,0.23208156,60089.0,60088.0,0.1832988]
[1720011326491,0.08655912,60089.0,60088.0,0.1832988]
[1720011326731,0.02440295,60089.0,60088.0,0.1832988]
[1720011326968,0.0624885,60094.0,60088.0,0.1832988]
[1720011326969,0.02440295,60090.0,60088.0,0.56587885]
[1720011327204,0.08741024,60096.0,60089.0,0.26678246]
[1720011327442,0.02494287,60095.0,60090.0,0.1602988]
[1720011327678,0.12494287,60100.0,60091.0,0.12289001]
[1720011327942,0.08795077,60099.0,60092.0,0.1602988]
[1720011328199,0.02494287,60098.0,60093.0,0.02632774]
[1720011328463,0.02494287,60097.0,60094.0,0.1602988]
[1720011328716,0.02494287,60096.0,60095.0,0.023]
[1720011328947,0.02494287,60096.0,60095.0,0.1832988]
[1720011329225,0.02694287,60096.0,60095.0,0.18662653]
[1720011329453,0.02694287,60096.0,60095.0,0.21566636]
[1720011329739,0.02352551,60096.0,60095.0,0.21566636]
[1720011329995,0.0235255,60099.0,60095.0,0.21233863]
[1720011330253,0.0235255,60098.0,60096.0,0.1602988]
[1720011330486,0.14552244,60104.0,60097.0,0.023]
[1720011330732,0.16717221,60120.0,60098.0,0.18749672]
[1720011330733,0.08178315,60103.0,60098.0,0.18749672]
[1720011330983,0.08178315,60102.0,60099.0,0.023]
[1720011331234,0.08178315,60101.0,60100.0,0.1602988]
[1720011331465,0.02178465,60101.0,60100.0,0.1832988]
[1720011331693,0.02178465,60105.0,60100.0,0.24494824]
[1720011331933,0.08209784,60105.0,60101.0,0.023]
[1720011332227,0.14552244,60104.0,60102.0,0.1602988]
[1720011332468,0.38752028,60103.0,60102.0,0.1602988]
[1720011332685,0.32762184,60103.0,60102.0,0.1832988]
[1720011332987,0.38752184,60103.0,60102.0,0.1832988]
[1720011333407,0.32762184,60103.0,60102.0,0.1482988]
[1720011333814,0.38752184,60103.0,60102.0,0.1482988]
[1720011334017,0.75592184,60103.0,60102.0,0.1482988]
[1720011335549,0.75692184,60103.0,60102.0,0.1492988]
[1720011335760,0.7561808,60103.0,60102.0,0.1492988]
[1720011335965,0.7561808,60103.0,60102.0,0.16595473]
[1720011335966,0.18235836,60103.0,60102.0,0.16595473]
[1720011336316,0.08235836,60103.0,60102.0,0.16595473]
[1720011336950,0.02255692,60103.0,60102.0,0.32515473]
[1720011338211,0.001,60103.0,60102.0,0.32515473]
[1720011338422,0.00083,60109.0,60102.0,0.62415473]
[1720011338602,0.01271305,60108.0,60104.0,0.1602988]
[1720011338811,0.00083,60109.0,60105.0,0.00332695]
[1720011339098,0.00083,60109.0,60106.0,0.1832988]
[1720011339099,0.01271305,60108.0,60106.0,0.1832988]
[1720011339236,0.00083,60109.0,60107.0,0.00332695]
[1720011339438,0.00083,60109.0,60108.0,0.1832988]
[1720011340069,0.01393401,60109.0,60108.0,0.1832988]
[1720011341304,0.01393401,60109.0,60108.0,0.1942988]
[1720011341737,0.01393401,60109.0,60108.0,0.2022988]
[1720011341975,0.01349307,60109.0,60108.0,0.2022988]
[1720011342180,0.01349307,60109.0,60108.0,0.22793915]
[1720011344555,0.01349307,60109.0,60108.0,0.52793915]
[1720011344958,0.00083,60109.0,60108.0,0.73613915]
[1720011345147,0.01295411,60109.0,60108.0,0.73613915]
[1720011345815,0.01295411,60109.0,60108.0,0.89583915]
[1720011346231,0.00083,60109.0,60108.0,0.89583915]
[1720011346445,0.01114453,60109.0,60108.0,0.5701988]
[1720011346657,0.01114453,60109.0,60108.0,0.1912988]
[1720011347048,0.01114453,60109.0,60108.0,0.2052988]
[1720011348011,0.01114453,60109.0,60108.0,0.1912988]
[1720011348222,0.00083,60109.0,60108.0,0.1942988]
[1720011348428,0.01114514,60109.0,60108.0,0.24381998]
[1720011348632,0.01114514,60109.0,60108.0,0.25781998]
[1720011349026,0.01114514,60109.0,60108.0,0.26114671]
[1720011349251,0.01114514,60109.0,60108.0,0.56114671]
[1720011349667,0.00083,60109.0,60108.0,0.56114671]
[1720011350229,0.00083,60109.0,60108.0,0.55014671]
[1720011350635,0.00083,60109.0,60108.0,0.56414671]
[1720011351248,0.00083,60109.0,60108.0,1.59752527]
[1720011351650,0.00083,60109.0,60108.0,1.26479127]
[1720011352693,0.00083,60109.0,60108.0,1.59752527]
[1720011352899,0.00083,60109.0,60108.0,1.93025927]
[1720011353102,0.00083,60109.0,60108.0,2.13025927]
[1720011353313,0.00083,60109.0,60108.0,1.14061998]
[1720011355591,0.00083,60109.0,60108.0,0.64061998]
[1720011355815,0.00083,60109.0,60108.0,0.94061998]
[1720011355999,0.00083,60109.0,60108.0,0.64061998]
[1720011356197,0.00083,60109.0,60108.0,0.26081998]
[1720011356804,0.00083,60109.0,60108.0,0.56414665]
[1720011357009,0.00083,60109.0,60108.0,0.56081998]
[1720011358629,0.00083,60109.0,60108.0,0.71529754]
[1720011359064,0.17961756,60130.0,60116.0,0.3]
[1720011359281,0.15449262,60129.0,60120.0,0.1602988]
[1720011359520,0.05449262,60128.0,60121.0,0.0263261]
[1720011359749,0.01031969,60127.0,60122.0,0.1602988]
[1720011359969,0.01031969,60126.0,60123.0,0.02632607]
[1720011360184,0.01031969,60125.0,60124.0,0.1602988]
[1720011360393,0.01031879,60129.0,60125.0,0.023]
[1720011360614,0.009196,60143.0,60125.0,0.023]
[1720011360615,0.1654,60134.0,60126.0,0.1636248]
[1720011360821,0.03596063,60133.0,60127.0,0.023]
[1720011361040,0.1654,60134.0,60128.0,0.19030803]
[1720011361041,0.03596063,60132.0,60128.0,0.19030803]
[1720011361250,0.03596063,60131.0,60129.0,0.023]
[1720011361451,0.1654,60134.0,60130.0,0.1602988]
[1720011361657,0.03596068,60133.0,60131.0,0.04498825]
[1720011361856,0.1654,60134.0,60132.0,0.1602988]
[1720011362051,0.1654,60134.0,60133.0,0.023]
[1720011362259,0.50701414,60134.0,60133.0,0.1832988]
[1720011362668,0.3015917,60134.0,60133.0,0.1832988]
[1720011363099,0.47082244,60134.0,60133.0,0.1832988]
[1720011363367,0.50577649,60134.0,60133.0,0.1832988]
[1720011363542,0.50577618,60134.0,60133.0,0.1842988]
[1720011364318,0.2654,60134.0,60133.0,0.1842988]
[1720011364444,0.1,60134.0,60133.0,0.1842988]
[1720011364652,0.24004248,60134.0,60133.0,0.1842988]
[1720011364900,0.34004248,60134.0,60133.0,0.1842988]
[1720011365223,0.13462004,60134.0,60133.0,0.1842988]
[1720011365362,0.13462004,60134.0,60133.0,0.1832988]
[1720011365363,0.34004248,60134.0,60133.0,0.1832988]
[1720011366179,0.33372849,60134.0,60133.0,0.1832988]
[1720011366357,0.33372849,60134.0,60133.0,0.1892988]
[1720011366358,0.33373143,60134.0,60133.0,0.1892988]
[1720011366558,0.28920899,60134.0,60133.0,0.1892988]
[1720011366761,0.49463143,60134.0,60133.0,0.1872988]
[1720011367197,0.49463143,60134.0,60133.0,0.1902988]
[1720011367401,0.93263143,60134.0,60133.0,0.03]
[1720011368289,0.93263143,60134.0,60133.0,0.026]
[1720011368634,0.93263143,60134.0,60133.0,0.029]
[1720011368777,0.69293143,60134.0,60133.0,0.029]
[1720011368972,0.69293143,60134.0,60133.0,0.023]
[1720011369179,0.69226956,60134.0,60133.0,0.023]
[1720011369435,0.48684712,60134.0,60133.0,0.023]
[1720011369829,0.12764712,60134.0,60133.0,0.1832988]
[1720011370013,0.12764712,60134.0,60133.0,0.20162868]
[1720011370713,0.02764712,60134.0,60133.0,0.20162868]
[1720011372101,0.00083,60140.0,60133.0,0.20162868]
[1720011372408,0.02329581,60139.0,60134.0,0.16362425]
[1720011372535,0.02329581,60138.0,60135.0,0.023]
[1720011372735,0.00083,60140.0,60136.0,0.16362422]
[1720011372736,0.02329581,60137.0,60136.0,0.16362422]
[1720011372923,0.02329581,60137.0,60136.0,0.18662422]
[1720011374629,0.02329581,60137.0,60136.0,0.19762422]
[1720011374828,0.02329581,60137.0,60136.0,0.22124484]
[1720011375182,0.00083,60140.0,60136.0,0.22124484]
[1720011375360,0.02351752,60139.0,60136.0,0.22924484]
[1720011375565,0.02351752,60139.0,60138.0,0.3283988]
[1720011375767,0.00083,60140.0,60138.0,0.5586988]
[1720011375984,0.00083,60140.0,60139.0,0.24590593]
[1720011376192,0.00083,60140.0,60139.0,0.26890593]
[1720011376391,0.00083,60140.0,60139.0,0.56890593]
[1720011377410,0.00083,60140.0,60139.0,0.26558101]
[1720011378865,0.00083,60140.0,60139.0,0.6490618]
[1720011379373,0.00083,60140.0,60139.0,0.6630618]
[1720011379580,0.00083,60140.0,60139.0,0.6770618]
[1720011379781,0.00083,60140.0,60139.0,0.6630618]
[1720011380610,0.00083,60140.0,60139.0,0.81753936]
[1720011380813,0.009196,60146.0,60145.0,0.5097]
[1720011381012,0.009196,60146.0,60145.0,0.6862593]
[1720011382942,0.009196,60146.0,60145.0,0.7092593]
[1720011384497,0.009196,60146.0,60145.0,0.7232593]
[1720011384702,0.009196,60146.0,60145.0,0.74558076]
[1720011384867,0.009196,60146.0,60145.0,0.76643895]
[1720011385685,0.009196,60146.0,60145.0,0.78043895]
[1720011386136,0.009196,60146.0,60145.0,0.76417845]
[1720011386829,0.009196,60146.0,60145.0,0.91865601]
[1720011387032,0.009196,60148.0,60147.0,0.96817756]
[1720011387180,0.009196,60148.0,60147.0,1.2485133]
[1720011387382,0.009196,60148.0,60147.0,1.4114133]
[1720011388759,0.009196,60148.0,60147.0,1.4254133]
[1720011389184,0.009196,60148.0,60147.0,1.4484133]
[1720011389843,0.009196,60148.0,60147.0,1.4624133]
[1720011390687,0.00835,60149.0,60148.0,0.766356]
[1720011390859,0.00835,60149.0,60148.0,1.54691457]
[1720011391055,0.00835,60149.0,60148.0,1.22618101]
[1720011391262,0.00835,60149.0,60148.0,1.38065857]
[1720011391487,0.01064518,60150.0,60149.0,1.09886]
[1720011391704,0.00835,60165.0,60151.0,0.566348]
[1720011391903,0.00835,60165.0,60151.0,0.5603988]
[1720011392108,0.1736,60163.0,60151.0,0.5603988]
[1720011392715,0.1736,60163.0,60151.0,0.5833988]
[1720011393301,0.23085,60165.0,60151.0,0.5833988]
[1720011393758,0.43627244,60165.0,60151.0,0.5833988]
[1720011393962,0.23085,60165.0,60151.0,0.5833988]
[1720011394497,0.23085,60165.0,60151.0,0.5973988]
[1720011394698,0.23085,60165.0,60151.0,0.6113988]
[1720011394913,0.00835,60165.0,60151.0,0.78819782]
[1720011395115,0.00835,60165.0,60151.0,1.82918982]
[1720011395314,0.00835,60165.0,60151.0,1.42333826]
[1720011395518,0.00835,60165.0,60151.0,1.39756782]
[1720011395742,0.00835,60165.0,60151.0,1.39533826]
[1720011395939,0.00835,60165.0,60151.0,1.72783426]
[1720011396140,0.00835,60165.0,60151.0,1.89631182]
[1720011396801,0.00237,60154.0,60153.0,0.92081956]
[1720011397014,0.00237,60154.0,60153.0,2.14038836]
[1720011397185,0.00237,60154.0,60153.0,1.80790336]
[1720011398253,0.00237,60154.0,60153.0,2.79564336]
[1720011398453,0.00237,60154.0,60153.0,2.87792557]
[1720011398653,0.00237,60154.0,60153.0,2.89192557]
[1720011399141,0.00237,60154.0,60153.0,2.90092557]
[1720011399342,0.00237,60154.0,60153.0,2.88692557]
[1720011399957,0.00237,60154.0,60153.0,2.91932557]
[1720011401011,0.00237,60154.0,60153.0,2.93332557]
[1720011401193,0.00237,60154.0,60153.0,2.91932557]
[1720011401537,0.00237,60154.0,60153.0,2.93332557]
[1720011401743,0.00237,60154.0,60153.0,2.94732557]
[1720011402141,0.00237,60154.0,60153.0,2.93332557]
[1720011402688,0.00237,60154.0,60153.0,2.94732557]
[1720011403469,0.00237,60154.0,60153.0,2.61484057]
[1720011405068,0.00237,60154.0,60153.0,2.28235557]
[1720011405900,0.00237,60154.0,60153.0,2.30241701]
[1720011406300,0.00237,60154.0,60153.0,2.63490201]
[1720011406490,0.00835,60165.0,60163.0,0.3]
[1720011406707,0.00835,60165.0,60163.0,0.76623601]
[1720011406910,0.00835,60165.0,60163.0,1.40701357]
[1720011407022,0.00835,60169.0,60168.0,0.5]
[1720011407225,0.00835,60169.0,60168.0,0.92924088]
[1720011408608,0.00835,60169.0,60168.0,1.13244188]
[1720011408851,0.009185,60171.0,60170.0,0.92077256]
[1720011409054,0.009185,60171.0,60170.0,1.2982453]
[1720011409478,0.009185,60171.0,60170.0,0.9658543]
[1720011409683,0.009185,60171.0,60170.0,1.38052751]
[1720011409903,0.009185,60171.0,60170.0,1.04813651]
[1720011411243,0.009185,60171.0,60170.0,0.84813651]
[1720011411537,0.009185,60171.0,60170.0,1.20261407]
[1720011411705,0.009185,60171.0,60170.0,1.21661407]
[1720011411917,0.009185,60171.0,60170.0,1.23061407]
[1720011412113,0.01735171,60186.0,60185.0,0.3]
[1720011412321,0.01735171,60186.0,60185.0,0.4995593]
[1720011414439,0.01735171,60186.0,60185.0,0.5015593]
[1720011414440,0.01818171,60186.0,60185.0,0.5015593]
[1720011414622,0.01818171,60186.0,60185.0,0.4852988]
[1720011414824,0.01818171,60186.0,60185.0,0.4832988]
[1720011415095,0.01818171,60186.0,60185.0,0.51254088]
[1720011415469,0.01818171,60186.0,60185.0,0.52654088]
[1720011415671,0.39828171,60186.0,60185.0,0.24054088]
[1720011415880,0.39828171,60186.0,60185.0,0.1905593]
[1720011416178,0.39828171,60186.0,60185.0,0.2045593]
[1720011416916,0.60370415,60186.0,60185.0,0.1905593]
[1720011417116,0.60370415,60186.0,60185.0,0.1765593]
[1720011417328,0.60370415,60186.0,60185.0,0.1742988]
[1720011417443,0.60370415,60186.0,60185.0,0.1882988]
[1720011417649,0.58635244,60186.0,60185.0,0.1882988]
[1720011417864,0.58635244,60186.0,60185.0,0.1742988]
[1720011418308,0.58635244,60186.0,60185.0,0.1852988]
[1720011418483,0.68635244,60186.0,60185.0,0.1852988]
[1720011418701,0.68635244,60186.0,60185.0,0.1602988]
[1720011419105,0.68635244,60186.0,60185.0,0.1802988]
[1720011419313,0.68635244,60186.0,60185.0,0.1712988]
[1720011419708,0.68635244,60186.0,60185.0,0.2022988]
[1720011421515,0.71635244,60186.0,60185.0,0.019]
[1720011421928,0.71635244,60186.0,60158.0,0.3]
[1720011421929,0.3772,60165.0,60158.0,0.3]
[1720011422122,0.3772,60165.0,60163.0,0.1602988]
[1720011422123,0.20542244,60164.0,60163.0,0.1602988]
[1720011423383,0.82302244,60164.0,60163.0,0.1602988]
[1720011424566,0.92302244,60164.0,60163.0,0.1602988]
[1720011425354,0.92302244,60164.0,60163.0,0.1652988]
[1720011425555,0.95302244,60164.0,60163.0,0.1602988]
[1720011425796,0.58012244,60153.0,60152.0,0.000913]
[1720011426005,0.58012244,60153.0,60152.0,0.1612118]
[1720011426209,0.61012244,60153.0,60152.0,0.000913]
[1720011426462,0.61012244,60153.0,60135.0,0.48093494]
[1720011426463,0.20542244,60139.0,60135.0,0.48093494]
[1720011426665,0.3747,60140.0,60136.0,0.1602988]
[1720011427407,0.58012244,60140.0,60136.0,0.1602988]
[1720011427643,0.20542244,60138.0,60136.0,0.1602988]
[1720011427909,0.20542244,60137.0,60136.0,0.1602988]
[1720011428842,0.20542244,60138.0,60136.0,0.1602988]
[1720011429053,0.20542244,60137.0,60136.0,0.1742988]
[1720011429643,0.20542244,60138.0,60136.0,0.1832988]
[1720011429843,0.20542244,60138.0,60137.0,0.023]
[1720011430047,0.20542244,60138.0,60137.0,0.1832988]
[1720011430240,0.001,60138.0,60137.0,0.1832988]
[1720011431141,0.001,60138.0,60137.0,0.20505473]
[1720011431960,0.002,60138.0,60137.0,0.20505473]
[1720011432136,0.001,60138.0,60137.0,0.20837986]
[1720011432309,0.001,60138.0,60137.0,0.21537986]
[1720011432310,0.002,60138.0,60137.0,0.21537986]
[1720011432517,0.001,60138.0,60137.0,0.21537986]
[1720011432729,0.001,60138.0,60137.0,0.20837986]
[1720011432934,0.003,60138.0,60137.0,0.53305473]
[1720011433838,0.003,60138.0,60137.0,0.55316964]
[1720011434062,0.003,60138.0,60137.0,0.23141371]
[1720011434792,0.003,60138.0,60137.0,0.2112988]
[1720011435209,0.003,60138.0,60137.0,0.1742988]
[1720011435210,0.20642244,60138.0,60137.0,0.1742988]
[1720011435428,0.20542244,60139.0,60137.0,0.1872988]
[1720011435684,0.20542244,60139.0,60138.0,0.1602988]
[1720011436748,0.20542244,60139.0,60138.0,0.1832988]
[1720011436918,0.05870986,60141.0,60138.0,0.1832988]
[1720011437120,0.05870986,60141.0,60139.0,0.023]
[1720011437322,0.20542244,60144.0,60140.0,0.1602988]
[1720011437649,0.2397,60156.0,60140.0,0.1602988]
[1720011437650,0.20542244,60146.0,60141.0,0.023]
[1720011437956,0.20542244,60145.0,60142.0,0.19317843]
[1720011438156,0.20542244,60149.0,60143.0,0.023]
[1720011438377,0.20542244,60149.0,60144.0,0.1602988]
[1720011438378,0.1,60148.0,60144.0,0.1602988]
[1720011438581,0.2687,60148.0,60145.0,0.023]
[1720011438864,0.2687,60148.0,60146.0,0.1602988]
[1720011439098,0.2687,60148.0,60147.0,0.023]
[1720011439368,0.2687,60148.0,60147.0,0.1832988]
[1720011440369,0.47412244,60148.0,60147.0,0.1832988]
[1720011440521,0.47412244,60148.0,60147.0,0.1942988]
[1720011440721,0.2687,60148.0,60147.0,0.1942988]
[1720011441041,0.2687,60148.0,60147.0,0.1832988]
[1720011441422,0.2687,60148.0,60147.0,0.1962988]
[1720011442620,0.2687,60148.0,60147.0,0.2062988]
[1720011442820,0.2687,60148.0,60147.0,0.1932988]
[1720011443026,0.2687,60148.0,60147.0,0.1832988]
[1720011443590,0.2687,60148.0,60147.0,0.2062988]
[1720011443925,0.1,60148.0,60147.0,0.22855473]
[1720011444127,0.20542244,60149.0,60147.0,0.2062988]
[1720011444390,0.20542244,60149.0,60148.0,0.1602988]
[1720011444530,0.30542244,60149.0,60148.0,0.1832988]
[1720011445742,0.1,60149.0,60148.0,0.1832988]
[1720011445950,0.1,60150.0,60148.0,0.20392868]
[1720011446121,0.1,60150.0,60149.0,0.023]
[1720011446324,0.11082212,60150.0,60149.0,0.1832988]
[1720011446949,0.31624456,60150.0,60149.0,0.1832988]
[1720011447350,0.30542244,60150.0,60149.0,0.1832988]
[1720011447734,0.30542244,60150.0,60149.0,0.1912988]
[1720011448327,0.31619346,60150.0,60149.0,0.1912988]
[1720011448539,0.11077102,60150.0,60149.0,0.21042868]
[1720011448745,0.01077102,60150.0,60149.0,0.21042868]
[1720011448939,0.11160102,60150.0,60149.0,0.22042868]
[1720011449146,0.00660102,60150.0,60149.0,0.22042868]
[1720011449554,0.00083,60150.0,60149.0,0.22042868]
[1720011449749,0.00083,60150.0,60149.0,0.23668918]
[1720011450406,0.00083,60150.0,60149.0,0.22668918]
[1720011450602,0.00083,60150.0,60149.0,0.21868918]
[1720011450774,0.00083,60150.0,60149.0,0.23268918]
[1720011450982,0.00083,60150.0,60149.0,0.24468918]
[1720011451176,0.00083,60150.0,60149.0,0.23268918]
[1720011451381,0.00083,60150.0,60149.0,0.20242868]
[1720011451587,0.00083,60150.0,60149.0,0.21642868]
[1720011451789,0.00083,60150.0,60149.0,0.60612868]
[1720011452813,0.00083,60150.0,60149.0,1.78290268]
[1720011453010,0.20542244,60173.0,60157.0,0.3]
[1720011453215,0.1675,60172.0,60167.0,0.08015582]
[1720011453415,0.1675,60172.0,60168.0,0.1832988]
[1720011453640,0.0173738,60173.0,60168.0,0.1832988]
[1720011453902,0.0173738,60173.0,60169.0,0.03162749]
[1720011454134,0.0173738,60173.0,60170.0,0.1832988]
[1720011454893,0.0173738,60173.0,60170.0,0.18662231]
[1720011455735,0.0173738,60173.0,60170.0,0.19362231]
[1720011456671,0.0173738,60173.0,60172.0,0.1602988]
[1720011456870,0.0173738,60173.0,60172.0,0.25666643]
[1720011457913,0.0173738,60173.0,60172.0,0.26166643]
[1720011458125,0.0173738,60173.0,60172.0,0.26866643]
[1720011459615,0.0173738,60173.0,60172.0,0.1952988]
[1720011459831,0.04373504,60179.0,60172.0,0.1952988]
[1720011460027,0.2147,60180.0,60173.0,0.023]
[1720011460210,0.2147,60180.0,60174.0,0.1602988]
[1720011460211,0.01033377,60179.0,60174.0,0.1602988]
[1720011460410,0.01033377,60179.0,60175.0,0.023]
[1720011460625,0.01033377,60179.0,60176.0,0.1602988]
[1720011460834,0.01033377,60179.0,60177.0,0.023]
[1720011460835,0.25003377,60179.0,60177.0,0.023]
[1720011461040,0.17963377,60178.0,60177.0,0.023]
[1720011461243,0.17963377,60178.0,60174.0,0.0162605]
[1720011461444,0.1692,60175.0,60174.0,0.0162605]
[1720011461667,0.17953377,60175.0,60174.0,0.0162605]
[1720011461877,0.30953377,60175.0,60167.0,0.0162605]
[1720011462115,0.2397,60173.0,60168.0,0.1602988]
[1720011462290,0.01033266,60172.0,60168.0,0.1602988]
[1720011462692,0.01273066,60171.0,60168.0,0.1602988]
[1720011462899,0.01273066,60170.0,60168.0,0.1602988]
[1720011463094,0.2397,60173.0,60168.0,0.1602988]
[1720011463448,0.01273038,60172.0,60168.0,0.1602988]
[1720011463613,0.3822,60171.0,60167.0,0.0162605]
[1720011463779,0.01273038,60170.0,60167.0,0.0162605]
[1720011463978,0.11273038,60170.0,60167.0,0.0162605]
[1720011464187,0.01273038,60169.0,60167.0,0.0162605]
[1720011464391,0.01273038,60169.0,60168.0,0.002]
[1720011464589,0.01273038,60169.0,60168.0,0.1622988]
[1720011464795,0.01273038,60169.0,60168.0,0.1602988]
[1720011465239,0.01273038,60169.0,60168.0,0.1832988]
[1720011465618,0.01278456,60169.0,60168.0,0.1832988]
[1720011466304,0.01278456,60169.0,60168.0,0.1882988]
[1720011467453,0.01278456,60169.0,60168.0,0.1902988]
[1720011467650,0.3772,60171.0,60168.0,0.1902988]
[1720011468832,0.3772,60171.0,60168.0,0.1832988]
[1720011469335,0.3772,60171.0,60168.0,0.1852988]
[1720011469722,0.1,60170.0,60168.0,0.1852988]
[1720011469926,0.1,60170.0,60169.0,0.24045462]
[1720011470253,0.1,60170.0,60169.0,0.1832988]
[1720011471227,0.1,60170.0,60169.0,0.1892988]
[1720011472775,0.1,60170.0,60169.0,0.1832988]
[1720011473853,0.1,60170.0,60169.0,0.1922988]
[1720011474174,0.1,60170.0,60169.0,0.1982988]
[1720011474372,0.1,60170.0,60169.0,0.21812868]
[1720011474781,0.1,60172.0,60169.0,0.21812868]
[1720011475009,0.1,60172.0,60170.0,0.023]
[1720011475186,0.1,60172.0,60171.0,0.1602988]
[1720011475343,0.1,60172.0,60171.0,0.1832988]
[1720011476921,0.1,60172.0,60171.0,0.1902988]
[1720011477326,0.1,60172.0,60171.0,0.21012868]
[1720011477519,0.1,60172.0,60171.0,0.1902988]
[1720011477848,0.1,60174.0,60171.0,0.19021818]
[1720011478075,0.1,60174.0,60172.0,0.023]
[1720011478193,0.1,60174.0,60173.0,0.1602988]
[1720011478393,0.16,60174.0,60173.0,0.023]
[1720011478619,0.06,60172.0,60171.0,0.007]
[1720011478829,0.2258,60172.0,60171.0,0.007]
[1720011479027,0.06,60170.0,60162.0,0.00020009]
[1720011479294,0.06,60170.0,60163.0,0.1602988]
[1720011479480,0.06,60169.0,60164.0,0.023]
[1720011479685,0.2397,60166.0,60165.0,0.1602988]
[1720011479897,0.3397,60166.0,60165.0,0.1832988]
[1720011480466,0.1,60166.0,60165.0,0.1832988]
[1720011481036,0.16,60170.0,60165.0,0.1832988]
[1720011481274,0.1,60170.0,60165.0,0.1832988]
[1720011481719,0.16,60170.0,60165.0,0.1832988]
[1720011482291,0.6683,60166.0,60165.0,0.006]
[1720011482470,0.6683,60166.0,60162.0,0.00020009]
[1720011482471,0.2278,60163.0,60162.0,0.00020009]
[1720011482668,0.3278,60163.0,60162.0,0.00020009]
[1720011484116,0.61683,60163.0,60162.0,9e-08]
[1720011484740,0.54,60163.0,60162.0,9e-08]
[1720011486276,0.545,60163.0,60162.0,9e-08]
[1720011486654,0.7847,60163.0,60162.0,9e-08]
[1720011486883,0.93970393,60163.0,60162.0,9e-08]
[1720011487083,0.06,60162.0,60155.0,0.002]
[1720011487293,0.12005261,60161.0,60155.0,0.002]
[1720011487523,0.22005261,60160.0,60155.0,0.002]
[1720011487734,0.06,60158.0,60155.0,0.002]
[1720011487914,0.06,60157.0,60155.0,0.002]
[1720011488132,0.06005168,60156.0,60155.0,0.002]
[1720011488336,0.16005168,60156.0,60155.0,0.002]
[1720011489336,0.16105168,60156.0,60155.0,0.002]
[1720011489723,0.06105168,60156.0,60155.0,0.002]
[1720011489922,0.001,60156.0,60155.0,0.002]
[1720011490313,0.06105168,60156.0,60155.0,0.002]
[1720011490849,0.001,60156.0,60155.0,0.002]
[1720011491073,0.64036287,60163.0,60155.0,0.002]
[1720011491074,0.05126831,60158.0,60155.0,0.002]
[1720011491256,0.06375248,60157.0,60155.0,0.002]
[1720011491469,0.55702884,60163.0,60155.0,0.002]
[1720011491470,0.06375248,60156.0,60155.0,0.002]
[1720011492975,0.05126831,60156.0,60155.0,0.002]
[1720011493152,0.05226831,60156.0,60155.0,0.002]
[1720011494055,0.001,60156.0,60155.0,0.002]
[1720011494271,0.0372646,60156.0,60155.0,0.002]
[1720011494498,0.0372646,60156.0,60149.0,0.023]
[1720011494713,0.40656438,60155.0,60150.0,0.1602988]
[1720011494939,0.13626438,60154.0,60150.0,0.1602988]
[1720011495149,0.03626438,60153.0,60148.0,0.0162605]
[1720011495382,0.03626438,60152.0,60149.0,0.1602988]
[1720011495590,0.03626438,60151.0,60149.0,0.1602988]
[1720011495807,0.3397,60154.0,60148.0,0.0162605]
[1720011495808,0.03626438,60150.0,60148.0,0.0162605]
[1720011496018,0.03626438,60149.0,60148.0,0.1765593]
[1720011496230,0.03626438,60153.0,60148.0,0.1995593]
[1720011496433,0.03626438,60153.0,60149.0,0.1602988]
[1720011496668,0.03626438,60153.0,60149.0,0.1692988]
[1720011497348,0.0363354,60152.0,60149.0,0.1692988]
[1720011497617,0.1,60154.0,60149.0,0.1692988]
[1720011497856,0.03633415,60153.0,60149.0,0.1692988]
[1720011498084,0.03633415,60152.0,60149.0,0.009]
[1720011498295,0.03633415,60151.0,60149.0,0.009]
[1720011498501,0.03633415,60150.0,60148.0,0.006]
[1720011498752,0.27603415,60149.0,60141.0,0.000913]
[1720011498969,0.13633415,60148.0,60142.0,0.1602988]
[1720011499175,0.03633415,60147.0,60143.0,0.023]
[1720011499452,0.03633415,60146.0,60144.0,0.1602988]
[1720011499610,0.03633415,60145.0,60144.0,0.1602988]
[1720011499829,0.03633415,60145.0,60144.0,0.1832988]
[1720011500055,0.03633415,60145.0,60141.0,0.000913]
[1720011500279,0.2025,60143.0,60141.0,1e-06]
[1720011500496,0.13624589,60142.0,60129.0,0.48093494]
[1720011500908,0.171,60134.0,60127.0,0.4772]
[1720011501131,0.14657682,60133.0,60129.0,0.1602988]
[1720011501398,0.01033093,60132.0,60129.0,0.1602988]
[1720011501615,0.05287632,60132.0,60129.0,0.1602988]
[1720011501847,0.1,60133.0,60129.0,0.1602988]
[1720011501848,0.01033093,60131.0,60129.0,0.1602988]
[1720011502030,0.01033093,60130.0,60129.0,0.1602988]
[1720011502795,0.01033093,60130.0,60129.0,0.1832988]
[1720011503044,0.1,60134.0,60129.0,0.1832988]
[1720011503279,0.1,60134.0,60130.0,0.023]
[1720011503999,0.1,60134.0,60133.0,0.14015582]
[1720011504235,0.1,60146.0,60135.0,0.06]
[1720011504496,0.1,60146.0,60136.0,0.2432988]
[1720011504747,0.1,60146.0,60136.0,0.1832988]
[1720011505248,0.1,60146.0,60136.0,0.2432988]
[1720011506173,0.1,60146.0,60137.0,0.06]
[1720011506373,0.1,60146.0,60136.0,0.1832988]
[1720011506374,0.1,60146.0,60138.0,0.1602988]